bitfinex-derivatives/quotes_ETHF0:USTF0_20250502
["timestamp","ask_amount","ask_price","bid_price","bid_amount"]
[1746148136540,5.4255,1848.6,1848.5,45.6289]
[1746148136740,5.4255,1848.6,1848.5,49.1979]
[1746148137440,6.2756,1848.6,1848.5,49.1979]
[1746148137640,7.35722,1848.6,1848.5,49.1979]
[1746148137841,7.35722,1848.6,1848.5,47.5768]
[1746148138741,6.2756,1848.6,1848.5,47.5768]
[1746148139038,7.35722,1848.6,1848.5,47.5768]
[1746148139240,7.35722,1848.6,1848.5,44.369]
[1746148139839,7.35722,1848.6,1848.5,40.8]
[1746148140242,6.2756,1848.6,1848.5,40.8]
[1746148140442,6.2756,1848.6,1848.5,41.88168]
[1746148140643,6.2756,1848.6,1848.5,43.57438]
[1746148140844,3.696,1848.6,1848.5,46.78218]
[1746148144741,3.696,1848.6,1848.5,45.7005]
[1746148144942,3.696,1848.6,1848.5,46.78218]
[1746148145641,4.77762,1848.6,1848.5,45.7005]
[1746148145840,4.77762,1848.6,1848.5,40.8]
[1746148146243,7.21712,1848.6,1848.5,40.8]
[1746148146948,1.0818,1848.3,1848.2,13.03513725]
[1746148147144,4.7778,1848.3,1848.2,13.03513725]
[1746148147347,4.7778,1848.3,1848.2,53.83513725]
[1746148147948,3.696,1848.3,1848.2,56.58679725]
[1746148149150,3.696,1848.3,1848.2,55.65479725]
[1746148149352,3.696,1848.3,1848.2,50.65479725]
[1746148149947,3.696,1848.3,1848.2,43.55166]
[1746148150249,2.71149,1848.5,1848.3,1.08177]
[1746148150551,2.71149,1848.5,1848.4,3.2078]
[1746148150747,1.6298,1848.5,1848.4,4.28954]
[1746148150953,1.6298,1848.5,1848.4,5.89314]
[1746148151253,5.3258,1848.5,1848.4,5.89314]
[1746148157955,6.40748,1848.5,1848.4,5.89314]
[1746148158249,6.40748,1848.5,1848.4,4.8114]
[1746148158455,6.40748,1848.5,1848.4,3.2078]
[1746148159652,1.0818,1848.3,1848.2,40.8]
[1746148160151,14.60834,1848.3,1847.9,10.63713725]
[1746148160356,1.08198,1848.0,1847.9,10.63713725]
[1746148160656,1.08198,1848.0,1847.9,51.43713725]
[1746148161249,4.77798,1848.0,1847.9,51.43713725]
[1746148162056,4.77798,1848.0,1847.9,52.51916725]
[1746148162356,4.77798,1848.0,1847.9,51.43713725]
[1746148163258,4.77798,1848.0,1847.9,47.90313725]
[1746148164746,4.77798,1848.0,1847.9,40.8]
[1746148166154,1.08215,1847.7,1847.6,13.84493725]
[1746148166355,1.08215,1847.7,1847.6,10.63713725]
[1746148166758,1.08215,1847.7,1847.6,51.43713725]
[1746148167057,2.81735,1847.7,1847.6,51.43713725]
[1746148168562,2.81735,1847.7,1847.6,47.90313725]
[1746148169263,2.81735,1847.7,1847.6,40.8]
[1746148172462,1.08227,1847.5,1847.4,1.6039]
[1746148172855,1.08227,1847.5,1847.4,42.4039]
[1746148173356,1.08227,1847.5,1847.4,43.48621]
[1746148173557,1.08227,1847.5,1847.4,42.4039]
[1746148173756,1.92347,1847.5,1847.4,42.4039]
[1746148174465,0.8412,1847.5,1847.4,43.48623]
[1746148174960,2.4167,1847.5,1847.4,43.48623]
[1746148176667,0.8736,1847.8,1847.4,46.69403]
[1746148176965,1.08215,1847.7,1847.6,1.08221]
[1746148177154,1.08215,1847.7,1847.6,2.78511]
[1746148178164,3.69863,1847.8,1847.6,2.78511]
[1746148178367,3.69863,1847.8,1847.6,2.78507]
[1746148178670,1.08215,1847.7,1847.6,2.78507]
[1746148179163,1.08215,1847.7,1847.6,1.7029]
[1746148179360,2.66165,1847.7,1847.6,42.5029]
[1746148179766,2.66165,1847.7,1847.6,1.7029]
[1746148180466,2.66165,1847.7,1847.6,2.78511]
[1746148183071,2.66165,1847.7,1847.6,1.7029]
[1746148183466,2.66165,1847.7,1847.5,40.8]
[1746148183467,1.08221,1847.6,1847.5,40.8]
[1746148183664,2.79351,1847.6,1847.5,42.5379]
[1746148184569,1.7113,1847.6,1847.5,43.62017]
[1746148184770,2.79351,1847.6,1847.5,43.62017]
[1746148186466,2.79351,1847.6,1847.5,42.5379]
[1746148186775,2.79351,1847.6,1847.5,43.62017]
[1746148186965,1.7113,1847.6,1847.5,43.62017]
[1746148187167,1.08218,1847.7,1847.6,1.08221]
[1746148187363,1.08218,1847.7,1847.6,2.70071]
[1746148188172,1.08218,1847.7,1847.6,3.53551]
[1746148188469,0.8526,1847.9,1847.8,1.08205]
[1746148188470,1.08205,1847.9,1847.8,1.08205]
[1746148188667,4.61601,1848.0,1847.9,1.08203]
[1746148188868,1.08201,1848.0,1847.9,1.08203]
[1746148189166,4.77798,1848.0,1847.9,1.08199]
[1746148189476,4.77798,1848.0,1847.8,2.70905]
[1746148189772,1.08203,1847.9,1847.8,1.627]
[1746148189966,3.49383,1847.9,1847.8,1.627]
[1746148190169,7.18983,1847.9,1847.8,42.427]
[1746148192362,7.18983,1847.9,1847.8,43.50909]
[1746148192568,3.696,1847.9,1847.8,43.50909]
[1746148192773,3.696,1847.9,1847.8,46.71689]
[1746148193570,4.77803,1847.9,1847.8,45.6348]
[1746148193774,4.77803,1847.9,1847.8,46.71689]
[1746148193973,4.77803,1847.9,1847.8,45.6348]
[1746148194774,4.77803,1847.9,1847.8,42.427]
[1746148194963,3.696,1847.9,1847.8,43.50909]
[1746148195169,3.696,1847.9,1847.8,46.71689]
[1746148195475,4.77803,1847.9,1847.8,46.71689]
[1746148196372,3.696,1847.9,1847.8,46.71689]
[1746148198477,3.696,1847.9,1847.8,55.22889]
[1746148199380,1.08184,1848.3,1848.1,1.08189]
[1746148199777,1.7462,1848.3,1848.2,2.77506]
[1746148200072,5.4422,1848.3,1848.2,2.77506]
[1746148200277,3.696,1848.3,1848.2,2.77506]
[1746148200579,3.696,1848.3,1848.2,5.98286]
[1746148200787,3.696,1848.3,1848.2,11.79656]
[1746148201273,2.5754,1848.7,1848.6,1.08162]
[1746148201975,5.40309,1848.9,1848.7,1.08154]
[1746148202180,5.58809,1848.9,1848.8,1.7373]
[1746148202477,7.31929,1848.9,1848.8,1.7373]
[1746148204683,7.31929,1848.9,1848.5,40.8]
[1746148204684,1.08162,1848.6,1848.5,40.8]
[1746148205179,4.77762,1848.6,1848.5,40.8]
[1746148205386,8.13052,1848.6,1848.5,40.8]
[1746148205777,1.08168,1848.5,1848.4,3.2078]
[1746148205977,2.74198,1848.5,1848.4,3.2078]
[1746148206179,6.43798,1848.5,1848.4,3.2078]
[1746148206885,5.3563,1848.5,1848.4,4.28954]
[1746148207191,3.696,1848.5,1848.4,5.99854]
[1746148208175,3.696,1848.5,1848.4,46.79854]
[1746148209182,1.08163,1848.6,1848.4,46.79854]
[1746148209485,2.78501,1848.7,1848.4,46.7985]
[1746148209674,2.78501,1848.7,1848.5,1.709]
[1746148209875,2.72372,1848.6,1848.5,1.709]
[1746148210084,1.08168,1848.5,1848.4,44.0078]
[1746148210284,2.4604,1848.5,1848.4,45.08954]
[1746148210486,2.4604,1848.5,1848.4,46.76534]
[1746148210783,3.54208,1848.5,1848.4,45.6836]
[1746148211182,7.23808,1848.5,1848.4,44.0078]
[1746148211378,2.70439,1848.4,1847.9,10.61313725]
[1746148211581,1.08198,1848.0,1847.9,10.61313725]
[1746148211781,1.08198,1848.0,1847.9,53.08893725]
[1746148212184,4.77798,1848.0,1847.9,53.08893725]
[1746148212589,3.696,1848.0,1847.9,54.17096725]
[1746148212787,6.1914,1848.0,1847.9,54.17096725]
[1746148212980,7.27338,1848.0,1847.9,53.08893725]
[1746148213684,7.27338,1848.0,1847.9,51.41313725]
[1746148214189,7.27338,1848.0,1847.9,52.49516725]
[1746148214388,7.27338,1848.0,1847.9,54.21096725]
[1746148214988,7.27338,1848.0,1847.9,53.12893725]
[1746148215191,7.27338,1848.0,1847.9,51.41313725]
[1746148215682,6.1914,1848.0,1847.9,52.49516725]
[1746148215878,3.696,1848.0,1847.9,54.21096725]
[1746148216084,1.08189,1848.2,1848.0,1.08193]
[1746148216287,2.73969,1848.2,1848.0,2.68423]
[1746148216493,2.73969,1848.2,1848.1,1.6023]
[1746148217190,6.43569,1848.2,1848.1,1.6023]
[1746148217492,6.43569,1848.2,1848.1,2.68422]
[1746148217791,5.3538,1848.2,1848.1,2.68422]
[1746148217988,3.696,1848.2,1848.1,2.68422]
[1746148218192,4.5043,1848.3,1848.2,1.08186]
[1746148218396,4.5043,1848.3,1848.2,2.68416]
[1746148218693,3.696,1848.3,1848.2,9.40596]
[1746148219102,0.8499,1848.5,1848.3,1.08174]
[1746148219301,1.93158,1848.5,1848.4,1.7118]
[1746148219501,3.52208,1848.5,1848.4,1.7118]
[1746148219699,3.52208,1848.5,1848.4,42.5118]
[1746148220000,3.52208,1848.5,1848.4,40.8]
[1746148220199,7.21808,1848.5,1848.4,40.8]
[1746148220801,1.08192,1848.1,1848.0,9.1398]
[1746148220995,1.08198,1848.0,1847.9,3.514]
[1746148221195,2.67248,1848.0,1847.9,44.314]
[1746148222104,6.36848,1848.0,1847.9,44.314]
[1746148222303,6.36848,1848.0,1847.9,45.39603]
[1746148222504,6.36848,1848.0,1847.9,46.97783]
[1746148224000,5.2865,1848.0,1847.9,46.97783]
[1746148224205,6.36848,1848.0,1847.9,45.8958]
[1746148226503,6.36848,1848.0,1847.9,40.8]
[1746148226703,6.36848,1848.0,1847.6,3.2078]
[1746148226704,1.08215,1847.7,1847.6,3.2078]
[1746148227003,1.08221,1847.6,1847.5,7.10313725]
[1746148227205,4.48171,1847.6,1847.5,7.10313725]
[1746148229901,1.08233,1847.4,1847.3,40.8]
[1746148230203,1.08233,1847.4,1847.3,44.496]
[1746148230408,1.08233,1847.4,1847.3,46.1671]
[1746148232205,1.08233,1847.4,1847.3,42.4711]
[1746148232402,1.08233,1847.4,1847.3,40.8]
[1746148232609,1.08244,1847.2,1847.1,1.7256]
[1746148232802,1.0825,1847.1,1847.0,3.696]
[1746148233101,2.7633,1847.1,1847.0,40.8]
[1746148234713,2.7633,1847.1,1847.0,41.88256]
[1746148234894,2.7633,1847.1,1847.0,42.5485]
[1746148236909,2.7633,1847.1,1847.0,1.7485]
[1746148237102,1.08262,1846.9,1846.8,10.41328]
[1746148237305,1.08262,1846.9,1846.8,7.5821]
[1746148237503,1.08262,1846.9,1846.8,48.3821]
[1746148237704,2.81419,1847.0,1846.8,49.46478]
[1746148238002,1.08262,1846.9,1846.8,48.60548]
[1746148238202,1.08262,1846.9,1846.8,52.30148]
[1746148238610,2.81419,1847.0,1846.8,52.30148]
[1746148238813,1.08262,1846.9,1846.8,47.7038]
[1746148239003,2.68982,1846.9,1846.8,44.496]
[1746148239310,2.68982,1846.9,1846.8,40.8]
[1746148239511,1.6072,1846.9,1846.8,41.88268]
[1746148239698,1.7296,1847.2,1846.9,1.08258]
[1746148240011,1.08251,1847.1,1846.9,1.89798]
[1746148240209,1.08256,1847.0,1846.9,0.8154]
[1746148240408,1.08256,1847.0,1846.9,1.89802]
[1746148240709,2.76874,1847.1,1846.9,1.89802]
[1746148241111,2.76874,1847.1,1846.9,5.59402]
[1746148241410,2.76874,1847.1,1847.0,1.08256]
[1746148241910,1.08256,1847.0,1846.9,5.59398]
[1746148242208,1.08262,1846.9,1846.8,45.09043]
[1746148243409,1.08262,1846.9,1846.8,44.0078]
[1746148244108,1.08262,1846.9,1846.8,45.09048]
[1746148244916,1.08262,1846.9,1846.8,44.0078]
[1746148246716,1.08262,1846.9,1846.8,40.8]
[1746148247015,1.08262,1846.9,1846.8,41.88268]
[1746148247216,1.08262,1846.9,1846.8,40.8]
[1746148249418,1.08274,1846.7,1846.6,0.8701]
[1746148249618,3.63854,1846.8,1846.6,1.95287]
[1746148249819,3.6385,1846.8,1846.7,40.8]
[1746148250921,3.6385,1846.8,1846.7,43.50044]
[1746148251120,0.8037,1846.9,1846.8,1.08268]
[1746148251320,0.8037,1846.9,1846.8,2.70038]
[1746148251620,1.88632,1846.9,1846.8,1.6177]
[1746148251820,3.63302,1846.9,1846.8,1.6177]
[1746148252019,1.08268,1846.8,1846.7,44.0078]
[1746148252221,2.82938,1846.8,1846.7,44.496]
[1746148253219,2.82938,1846.8,1846.7,40.8]
[1746148254422,1.0828,1846.6,1846.5,7.7976]
[1746148254620,1.0828,1846.6,1846.5,9.4948]
[1746148255121,1.0828,1846.6,1846.5,13.1908]
[1746148255321,1.0828,1846.6,1846.5,5.3932]
[1746148255517,2.7353,1846.6,1846.5,3.696]
[1746148256222,1.08291,1846.4,1846.3,46.8882]
[1746148257224,1.08291,1846.4,1846.3,46.2143]
[1746148257616,1.08291,1846.4,1846.3,5.4143]
[1746148258121,1.08291,1846.4,1846.3,42.5183]
[1746148258518,1.08291,1846.4,1846.3,1.7183]
[1746148260221,1.08297,1846.3,1846.2,40.8]
[1746148260528,2.71667,1846.3,1846.2,42.4597]
[1746148260922,2.71667,1846.3,1846.2,1.6597]
[1746148261223,1.6337,1846.3,1845.9,4.0091]
[1746148261426,1.08315,1846.0,1845.9,4.0091]
[1746148261627,1.08311,1846.1,1845.9,6.75201]
[1746148261829,1.08311,1846.1,1846.0,1.6609]
[1746148262024,1.7441,1846.1,1846.0,43.54405]
[1746148262224,1.7441,1846.1,1846.0,44.33515]
[1746148262527,2.82719,1846.1,1846.0,44.33515]
[1746148262719,2.82719,1846.1,1846.0,43.252]
[1746148263628,2.82719,1846.1,1846.0,42.4609]
[1746148263923,1.08327,1845.8,1845.7,4.29108]
[1746148264123,1.08327,1845.8,1845.7,7.98708]
[1746148264627,1.08325,1845.9,1845.7,50.44798]
[1746148264822,1.08325,1845.9,1845.8,1.6723]
[1746148266227,7.5422,1846.2,1845.9,1.08321]
[1746148266528,2.78725,1846.2,1846.0,1.08315]
[1746148266721,1.95225,1846.2,1846.0,1.89275]
[1746148266922,1.08309,1846.1,1846.0,0.8096]
[1746148267123,1.08309,1846.1,1846.0,9.09775]
[1746148267330,1.08307,1846.2,1846.0,9.09775]
[1746148267826,1.6118,1846.3,1846.2,1.08303]
[1746148268025,1.6797,1846.4,1846.2,1.08303]
[1746148268225,1.6797,1846.4,1846.2,5.60093]
[1746148268423,1.08297,1846.3,1846.2,4.5179]
[1746148268626,1.08297,1846.3,1846.2,3.696]
[1746148268824,2.76067,1846.3,1846.2,3.696]
[1746148269326,2.76067,1846.3,1846.1,3.2078]
[1746148269327,1.08303,1846.2,1846.1,4.29089]
[1746148269530,2.76071,1846.3,1846.1,4.29089]
[1746148269730,2.76071,1846.3,1846.1,5.09009]
[1746148270226,1.08303,1846.2,1846.1,5.09009]
[1746148270420,2.7607,1846.3,1846.1,4.007]
[1746148270633,2.7607,1846.3,1846.1,5.09005]
[1746148271132,1.083,1846.3,1846.2,1.08303]
[1746148271725,3.264,1846.4,1846.3,1.08297]
[1746148272132,1.08303,1846.2,1846.1,5.09006]
[1746148272331,1.08303,1846.2,1846.1,4.007]
[1746148272931,2.66731,1846.3,1846.1,5.09009]
[1746148273131,1.08303,1846.2,1846.1,5.09009]
[1746148273328,1.08303,1846.2,1846.1,4.007]
[1746148273730,1.5843,1846.3,1846.1,5.09009]
[1746148273930,1.08303,1846.2,1846.1,5.09009]
[1746148274933,1.08303,1846.2,1846.1,4.007]
[1746148275834,1.08303,1846.2,1846.1,5.09009]
[1746148276138,1.08299,1846.3,1846.2,1.08301]
[1746148277230,1.08299,1846.3,1846.2,4.77901]
[1746148277537,1.89845,1846.4,1846.3,1.08297]
[1746148277737,1.7278,1846.5,1846.2,3.696]
[1746148277738,1.08289,1846.5,1846.2,3.696]
[1746148277940,4.043,1846.6,1846.3,1.08294]
[1746148278233,1.08291,1846.4,1846.3,4.77894]
[1746148278536,1.08287,1846.5,1846.4,1.0829]
[1746148278739,1.08287,1846.5,1846.4,1.9081]
[1746148278941,1.08287,1846.5,1846.4,0.8252]
[1746148279140,1.08285,1846.5,1846.4,4.5212]
[1746148279534,1.08285,1846.5,1846.4,3.696]
[1746148279734,7.78295,1846.5,1846.4,3.696]
[1746148280130,1.08297,1846.3,1846.2,3.528]
[1746148280327,1.08303,1846.2,1846.1,4.0698]
[1746148280639,1.7241,1846.4,1846.2,1.08301]
[1746148280640,2.80706,1846.4,1846.2,1.08301]
[1746148280841,2.80706,1846.4,1846.3,2.68317]
[1746148281234,2.80706,1846.4,1846.3,5.2962]
[1746148281642,2.80706,1846.4,1846.3,6.37917]
[1746148281837,1.95239,1846.5,1846.3,6.37917]
[1746148282144,1.95239,1846.5,1846.4,1.6002]
[1746148283243,1.95239,1846.5,1846.4,5.2962]
[1746148283740,3.54439,1846.5,1846.4,5.2962]
[1746148286745,3.54439,1846.5,1846.4,3.696]
[1746148287137,1.08291,1846.4,1846.3,3.528]
[1746148287337,2.80621,1846.4,1846.3,3.528]
[1746148288145,2.80621,1846.4,1846.3,7.224]
[1746148288447,2.80621,1846.4,1846.3,3.696]
[1746148290853,6.01401,1846.4,1846.3,3.696]
[1746148291349,6.01401,1846.4,1846.1,3.528]
[1746148291350,1.08303,1846.2,1846.1,3.528]
[1746148292349,2.77423,1846.2,1846.1,3.528]
[1746148292550,2.77423,1846.2,1846.1,5.1632]
[1746148294948,3.2078,1846.4,1846.1,5.1632]
[1746148295253,0.8617,1846.4,1846.3,1.08297]
[1746148295551,9.42741,1846.5,1846.3,1.08297]
[1746148295751,9.42741,1846.5,1846.4,1.5899]
[1746148296154,9.42741,1846.5,1846.4,2.67281]
[1746148296356,8.61211,1846.5,1846.4,1.5899]
[1746148296655,6.92091,1846.5,1846.4,1.5899]
[1746148297253,6.92091,1846.5,1846.4,5.2859]
[1746148297963,5.838,1846.5,1846.4,6.36881]
[1746148298165,6.92085,1846.5,1846.4,6.36881]
[1746148298364,6.92085,1846.5,1846.4,5.2859]
[1746148298864,1.08285,1846.5,1846.4,6.36881]
[1746148299061,1.08285,1846.5,1846.4,5.2859]
[1746148300067,1.08285,1846.5,1846.4,6.36881]
[1746148300961,3.60365,1846.6,1846.4,9.89681]
[1746148301161,1.94455,1846.6,1846.5,2.79365]
[1746148301663,1.94455,1846.6,1846.5,2.5592]
[1746148301966,1.94455,1846.6,1846.5,1.7108]
[1746148302170,3.52035,1846.6,1846.5,5.4068]
[1746148303769,3.52035,1846.6,1846.5,6.48965]
[1746148305370,3.52035,1846.6,1846.5,5.4068]
[1746148305771,1.94455,1846.6,1846.5,6.48965]
[1746148306973,1.94455,1846.6,1846.5,5.4068]
[1746148308270,3.57595,1846.6,1846.5,5.4068]
[1746148311776,3.57595,1846.6,1846.5,6.48965]
[1746148312177,3.57595,1846.6,1846.5,5.4068]
[1746148312977,3.57595,1846.6,1846.5,6.48965]
[1746148313674,3.57595,1846.6,1846.5,5.4068]
[1746148313981,3.57595,1846.6,1846.5,3.696]
[1746148314178,2.4931,1846.6,1846.3,13.00798725]
[1746148314379,2.4931,1846.6,1846.4,3.508]
[1746148314380,2.82605,1846.5,1846.4,3.508]
[1746148315178,2.82605,1846.5,1846.4,8.8181]
[1746148315880,2.82605,1846.5,1846.4,5.3101]
[1746148316072,2.82605,1846.5,1846.4,8.8181]
[1746148316381,2.82605,1846.5,1846.4,9.90101]
[1746148316881,1.94453,1846.6,1846.4,9.90101]
[1746148317080,1.94453,1846.6,1846.5,2.5256]
[1746148317580,1.94453,1846.6,1846.5,3.60845]
[1746148317780,2.4632,1846.6,1846.5,3.60845]
[1746148318182,3.546,1846.6,1846.5,7.30445]
[1746148318879,2.4632,1846.6,1846.5,7.30445]
[1746148319084,4.67529106,1846.9,1846.8,1.08268]
[1746148319281,7.11859106,1846.9,1846.8,1.08268]
[1746148319580,7.11859106,1846.9,1846.7,4.59069]
[1746148319883,6.03595106,1846.9,1846.8,1.08268]
[1746148320075,7.11857106,1846.9,1846.8,4.77868]
[1746148320381,3.52592,1846.9,1846.8,45.57868]
[1746148320782,2.4433,1846.9,1846.8,45.57868]
[1746148321080,2.4433,1846.9,1846.8,46.0709]
[1746148321081,3.52592,1846.9,1846.8,46.0709]
[1746148321981,3.52592,1846.9,1846.8,47.15358]
[1746148322470,3.52592,1846.9,1846.8,46.0709]
[1746148322674,3.52592,1846.9,1846.8,44.496]
[1746148323077,3.52592,1846.9,1846.8,40.8]
[1746148326285,1.08268,1846.8,1846.7,1.08273]
[1746148326483,2.5333,1846.8,1846.7,1.08273]
[1746148326881,2.5333,1846.8,1846.7,41.88273]
[1746148327088,2.5333,1846.8,1846.7,45.57873]
[1746148327477,3.61598,1846.8,1846.7,44.496]
[1746148329078,3.61598,1846.8,1846.7,40.8]
[1746148331490,2.5333,1846.8,1846.7,41.88274]
[1746148331690,2.5333,1846.8,1846.7,44.42084]
[1746148332189,3.61598,1846.8,1846.7,44.42084]
[1746148332692,3.61598,1846.8,1846.7,43.3381]
[1746148332990,1.0828,1846.6,1846.5,3.508]
[1746148333491,1.0828,1846.6,1846.5,44.308]
[1746148334390,1.0828,1846.6,1846.5,45.39085]
[1746148335290,2.68678,1846.7,1846.6,1.0828]
[1746148335891,1.8933,1846.8,1846.6,2.5195]
[1746148336193,1.08274,1846.7,1846.6,3.60225]
[1746148337586,1.08274,1846.7,1846.6,2.5195]
[1746148337989,2.80394,1846.7,1846.6,2.5195]
[1746148340292,1.0828,1846.6,1846.5,6.9038]
[1746148340498,2.804,1846.6,1846.5,3.696]
[1746148341195,2.804,1846.6,1846.4,7.10313725]
[1746148341196,1.08285,1846.5,1846.4,7.10313725]
[1746148341395,4.39265,1846.5,1846.4,7.10313725]
[1746148343097,4.39265,1846.5,1846.4,8.76793725]
[1746148343495,2.4786,1846.5,1846.4,2.74771]
[1746148343690,1.08285,1846.6,1846.4,6.25071]
[1746148343990,1.08285,1846.6,1846.5,2.5032]
[1746148344188,1.08285,1846.6,1846.5,6.1992]
[1746148344394,1.08285,1846.6,1846.5,7.28205]
[1746148344798,1.08278,1846.7,1846.5,6.1992]
[1746148344994,12.97477106,1846.8,1846.6,3.64077]
[1746148345197,11.89205106,1846.8,1846.7,2.77954]
[1746148345394,12.97473106,1846.8,1846.7,1.6968]
[1746148345695,7.13673106,1846.8,1846.7,1.6968]
[1746148345899,7.13673106,1846.8,1846.7,4.9046]
[1746148346197,7.13673106,1846.8,1846.7,1.6968]
[1746148347096,3.54408,1846.8,1846.7,1.6968]
[1746148347296,3.54408,1846.8,1846.7,5.3928]
[1746148348299,3.54408,1846.8,1846.7,1.6968]
[1746148352990,0.8179,1846.8,1846.5,14.84533725]
[1746148353202,1.0828,1846.6,1846.5,15.58223725]
[1746148353704,1.9544,1846.6,1846.5,15.58223725]
[1746148354095,1.9544,1846.6,1846.5,11.88623725]
[1746148355299,0.8716,1846.6,1846.5,12.96908725]
[1746148355502,1.7098,1846.7,1846.6,1.0828]
[1746148355804,1.08274,1846.7,1846.6,2.6581]
[1746148356604,1.08274,1846.7,1846.6,1.5753]
[1746148359904,2.70064,1846.7,1846.6,1.5753]
[1746148361710,1.0828,1846.6,1846.5,10.31093725]
[1746148362007,1.08278,1846.7,1846.5,11.93993725]
[1746148362307,1.0828,1846.6,1846.5,5.91962]
[1746148362507,1.0828,1846.6,1846.5,4.8368]
[1746148362707,2.6644,1846.6,1846.5,4.8368]
[1746148363107,2.6644,1846.6,1846.5,3.2078]
[1746148363410,2.6644,1846.6,1846.5,6.9038]
[1746148364202,2.6644,1846.6,1846.5,3.2078]
[1746148368005,1.08291,1846.4,1846.3,7.10313725]
[1746148369313,1.93161,1846.4,1846.3,12.49873725]
[1746148369812,2.74511,1846.4,1846.3,12.49873725]
[1746148372914,2.74511,1846.4,1846.3,5.3956]
[1746148374017,0.8487,1846.4,1846.3,6.47857]
[1746148374718,1.93161,1846.4,1846.3,6.47857]
[1746148375020,1.0829,1846.5,1846.4,1.08291]
[1746148375220,1.08291,1846.4,1846.3,3.696]
[1746148375420,2.80901,1846.4,1846.3,3.696]
[1746148375920,2.80901,1846.4,1846.3,5.3867]
[1746148376819,2.80901,1846.4,1846.3,3.696]
[1746148377124,1.08297,1846.3,1846.2,47.90313725]
[1746148377422,4.43937,1846.3,1846.2,47.90313725]
[1746148378122,4.43937,1846.3,1846.2,51.59913725]
[1746148378314,4.43937,1846.3,1846.2,53.30283725]
[1746148379122,4.43937,1846.3,1846.2,56.51063725]
[1746148379623,3.63737,1846.3,1846.2,56.51063725]
[1746148380219,2.5544,1846.3,1846.2,57.59366725]
[1746148380524,3.2078,1846.7,1846.2,57.59366725]
[1746148380525,12.13748106,1846.8,1846.2,49.4075]
[1746148380822,1.0828,1846.6,1846.5,4.29062]
[1746148381015,4.38497,1846.7,1846.5,3.2078]
[1746148381215,4.38497,1846.7,1846.6,1.7395]
[1746148382123,2.491,1846.7,1846.6,2.8223]
[1746148382425,3.57374,1846.7,1846.6,1.7395]
[1746148384626,1.0828,1846.6,1846.5,6.9038]
[1746148384819,3.57378,1846.7,1846.5,7.98661]
[1746148385019,3.57378,1846.7,1846.6,1.0828]
[1746148385221,3.57378,1846.7,1846.6,2.8292]
[1746148386230,2.491,1846.7,1846.6,2.8292]
[1746148386727,3.57374,1846.7,1846.6,2.8292]
[1746148387522,0.8286,1846.7,1846.6,2.8292]
[1746148387720,1.08274,1846.7,1846.6,1.7464]
[1746148388228,1.0828,1846.6,1846.5,14.00693725]
[1746148388930,1.0828,1846.6,1846.5,10.79913725]
[1746148389126,2.7387,1846.6,1846.5,7.10313725]
[1746148392118,1.08291,1846.4,1846.3,3.2078]
[1746148392319,1.08291,1846.4,1846.3,4.9138]
[1746148393131,1.08291,1846.4,1846.3,8.6098]
[1746148395331,1.08291,1846.4,1846.3,6.9038]
[1746148397534,1.08291,1846.4,1846.3,8.5265]
[1746148397833,2.82791,1846.5,1846.3,9.60947]
[1746148398034,1.745,1846.5,1846.4,2.4203]
[1746148398431,1.08285,1846.5,1846.4,2.4203]
[1746148398728,1.90854,1846.6,1846.4,4.29969]
[1746148398929,1.90854,1846.6,1846.5,1.7466]
[1746148400041,1.90854,1846.6,1846.5,4.9544]
[1746148400235,1.90854,1846.6,1846.5,8.6504]
[1746148400643,1.90854,1846.6,1846.5,5.4426]
[1746148401441,3.61654,1846.6,1846.5,5.4426]
[1746148402434,3.61654,1846.6,1846.5,3.696]
[1746148403240,1.08291,1846.4,1846.3,4.8531]
[1746148403438,2.7412,1846.5,1846.3,4.8531]
[1746148403741,0.8257,1846.6,1846.4,1.6453]
[1746148403948,1.08285,1846.5,1846.4,2.72819]
[1746148404139,1.08285,1846.5,1846.4,7.25889]
[1746148404439,1.90854,1846.6,1846.4,7.25889]
[1746148404645,1.90854,1846.6,1846.5,1.6453]
[1746148404946,3.56684,1846.6,1846.5,1.6453]
[1746148405245,3.56684,1846.6,1846.5,5.3413]
[1746148406348,3.56684,1846.6,1846.5,3.696]
[1746148406743,6.77464,1846.6,1846.5,3.696]
[1746148406945,3.56684,1846.6,1846.5,3.696]
[1746148407147,1.08297,1846.3,1846.2,12.24483725]
[1746148408149,1.08297,1846.3,1846.2,19.55561211]
[1746148410454,3.65507,1846.3,1846.2,19.55561211]
[1746148411754,3.65507,1846.3,1846.2,8.8377]
[1746148418762,1.91017,1846.3,1846.2,8.8377]
[1746148418956,1.91017,1846.3,1846.2,9.92073]
[1746148419157,1.08281,1846.6,1846.5,1.08283]
[1746148419359,6.00245106,1846.8,1846.4,3.2078]
[1746148419651,3.59265106,1846.8,1846.7,1.08274]
[1746148419854,3.59265106,1846.8,1846.7,41.88274]
[1746148420163,3.59265106,1846.8,1846.7,47.17174]
[1746148421452,3.59265106,1846.8,1846.7,52.17174]
[1746148421653,5.41611555,1846.9,1846.8,1.08268]
[1746148421859,1.08241,1847.3,1846.8,8.3783]
[1746148422065,3.61278038,1847.4,1847.3,1.08239]
[1746148422368,3.61278038,1847.4,1847.3,48.59119]
[1746148423067,3.61278038,1847.4,1847.3,52.28719]
[1746148425664,3.56059,1847.7,1847.5,1.08227]